bitfinex/quotes_BTCUSD_20251016
["timestamp","ask_amount","ask_price","bid_price","bid_amount"]
[1760631263313,0.14835032,108810.0,108800.0,0.94869458]
[1760631264192,0.33215695,108810.0,108800.0,0.76487106]
[1760631264432,0.14835032,108810.0,108800.0,0.94869458]
[1760631265305,0.14835032,108810.0,108800.0,1.28869458]
[1760631265522,0.14,108810.0,108800.0,1.42047686]
[1760631265772,0.14,108810.0,108800.0,1.51016698]
[1760631265985,0.14835313,108810.0,108800.0,1.5041844]
[1760631266204,0.14835336,108810.0,108800.0,1.49521062]
[1760631266430,0.14,108810.0,108800.0,1.14105334]
[1760631266644,0.14,108810.0,108800.0,0.94869458]
[1760631266645,0.14834904,108810.0,108800.0,0.94869458]
[1760631266859,0.14,108810.0,108800.0,0.76487106]
[1760631267081,0.14,108810.0,108800.0,0.94869458]
[1760631267505,0.14835105,108810.0,108800.0,0.94869458]
[1760631267917,0.14835105,108810.0,108800.0,0.76487106]
[1760631268122,0.14835105,108810.0,108800.0,0.94869458]
[1760631270483,0.14835105,108810.0,108800.0,0.18382352]
[1760631270734,0.00919371,108770.0,108740.0,0.01839673]
[1760631271011,0.33144908,108770.0,108760.0,0.01839673]
[1760631271234,0.18389113,108760.0,108740.0,0.97638888]
[1760631271499,0.18389113,108760.0,108740.0,0.01839673]
[1760631271500,0.18390804,108750.0,108740.0,0.01839673]
[1760631271703,0.10661075,108750.0,108720.0,0.01839673]
[1760631271930,0.18392759,108740.0,108720.0,0.01839673]
[1760631272170,0.18394187,108730.0,108710.0,0.0004]
[1760631272405,0.25229292,108730.0,108710.0,0.0004]
[1760631272657,0.25229292,108730.0,108710.0,0.18437185]
[1760631272900,0.25229292,108730.0,108720.0,0.00425083]
[1760631273370,0.25229292,108730.0,108710.0,0.18437185]
[1760631275175,0.06835105,108730.0,108720.0,0.18395879]
[1760631275835,0.06835105,108730.0,108720.0,0.67970179]
[1760631276244,0.06835105,108730.0,108720.0,0.67071979]
[1760631276653,0.06835105,108730.0,108720.0,0.17497679]
[1760631277516,0.06835105,108730.0,108720.0,1.16646279]
[1760631277731,0.06835105,108730.0,108720.0,1.29233519]
[1760631277952,0.1,108760.0,108750.0,0.67965104]
[1760631278160,0.01839673,108770.0,108760.0,0.18389113]
[1760631278369,0.14839673,108770.0,108760.0,0.67963413]
[1760631278626,0.13,108770.0,108760.0,0.67963413]
[1760631279259,0.13,108770.0,108760.0,1.07963413]
[1760631279469,0.13,108770.0,108760.0,0.57192039]
[1760631279676,0.13,108770.0,108760.0,1.06766339]
[1760631280090,0.13,108770.0,108760.0,0.57192039]
[1760631280305,0.13,108770.0,108750.0,0.18390804]
[1760631280529,0.13,108770.0,108750.0,0.495743]
[1760631280744,0.31387423,108770.0,108760.0,0.18389113]
[1760631280948,0.13,108770.0,108760.0,0.1479727]
[1760631281188,0.13,108770.0,108760.0,0.63772923]
[1760631281824,0.13,108770.0,108760.0,1.13347223]
[1760631282032,0.13,108770.0,108760.0,1.59934463]
[1760631282033,1e-08,108770.0,108760.0,1.59934463]
[1760631282244,0.01839673,108810.0,108800.0,0.18382352]
[1760631282455,0.32220336,108810.0,108790.0,0.67958342]
[1760631282661,0.32220336,108810.0,108800.0,0.00885676]
[1760631282882,0.30380663,108810.0,108790.0,0.67958342]
[1760631283748,0.30380663,108810.0,108800.0,0.18457288]
[1760631283749,0.12,108810.0,108800.0,0.18457288]
[1760631283953,0.12,108810.0,108800.0,0.18382352]
[1760631284168,0.32678266,108810.0,108790.0,0.67958342]
[1760631284374,0.30380684,108810.0,108800.0,0.18674667]
[1760631284581,0.30380684,108810.0,108790.0,0.18384042]
[1760631284790,0.12,108810.0,108800.0,0.18382352]
[1760631285207,0.30380663,108810.0,108790.0,0.18384042]
[1760631285414,0.30380663,108810.0,108790.0,0.17297699]
[1760631285629,0.30380663,108810.0,108800.0,0.00092131]
[1760631286052,0.30380663,108810.0,108790.0,0.17297699]
[1760631286298,0.31299696,108810.0,108790.0,0.67958342]
[1760631286504,0.31299696,108810.0,108800.0,0.00092638]
[1760631287345,0.31299696,108810.0,108790.0,0.67958342]
[1760631287780,0.30380663,108810.0,108800.0,0.18382352]
[1760631287990,0.30380663,108810.0,108780.0,0.68876132]
[1760631288197,0.30380663,108810.0,108790.0,0.18383948]
[1760631288198,0.18382352,108800.0,108790.0,0.18383948]
[1760631288402,0.12,108800.0,108790.0,0.18383948]
[1760631288845,0.14297794,108800.0,108770.0,0.495743]
[1760631289049,0.18384472,108790.0,108770.0,0.18387314]
[1760631289228,0.30384472,108790.0,108770.0,0.18387314]
[1760631289778,0.32136767,108790.0,108770.0,0.18386603]
[1760631289980,0.18385732,108780.0,108750.0,0.19309956]
[1760631290191,0.33517041,108780.0,108750.0,0.19309956]
[1760631290401,0.31218825,108780.0,108760.0,0.67963389]
[1760631290841,0.31218825,108780.0,108760.0,0.18389089]
[1760631291019,0.31218825,108780.0,108770.0,0.19125259]
[1760631291208,0.31218825,108780.0,108760.0,0.67963389]
[1760631291410,0.31218825,108780.0,108760.0,0.66766231]
[1760631291609,0.12833093,108780.0,108770.0,0.19249877]
[1760631291935,0.12833093,108780.0,108770.0,0.67961723]
[1760631292524,0.12833093,108780.0,108770.0,0.18387423]
[1760631292790,0.12833093,108780.0,108770.0,0.68833506]
[1760631292924,0.12833093,108780.0,108770.0,0.67961723]
[1760631293539,0.12833093,108780.0,108760.0,0.66766231]
[1760631293744,0.31218825,108780.0,108760.0,0.66766231]
[1760631294027,0.31218825,108780.0,108760.0,0.18389106]
[1760631294223,0.2068585,108770.0,108750.0,0.67929512]
[1760631294424,0.2068585,108770.0,108750.0,0.4953904]
[1760631294425,0.18389113,108760.0,108750.0,0.4953904]
[1760631294643,0.01833093,108760.0,108750.0,0.18390804]
[1760631295989,0.01833093,108760.0,108750.0,0.70301942]
[1760631296194,0.01833093,108760.0,108750.0,0.69403971]
[1760631296595,0.20009709,108780.0,108750.0,0.69403971]
[1760631296840,0.32438307,108780.0,108760.0,0.19845061]
[1760631297054,0.1440296,108780.0,108770.0,0.67926463]
[1760631298746,0.1440296,108780.0,108770.0,0.71544691]
[1760631299307,0.1440296,108780.0,108770.0,0.7450414]
[1760631300124,0.1440296,108780.0,108770.0,0.83473152]
[1760631300369,0.1440296,108780.0,108770.0,1.17473152]
[1760631302153,0.1440296,108780.0,108770.0,1.32243152]
[1760631303047,0.1440296,108780.0,108770.0,0.18387423]
[1760631303477,0.32788692,108780.0,108770.0,0.18387423]
[1760631303678,0.32788692,108780.0,108760.0,0.33158291]
[1760631303935,0.18387423,108770.0,108760.0,0.18389113]
[1760631304187,0.0040296,108780.0,108770.0,0.18387423]
[1760631304365,0.1440296,108780.0,108770.0,0.18387423]
[1760631304577,0.1440296,108780.0,108770.0,0.67926463]
[1760631304795,0.1440296,108780.0,108770.0,0.18387423]
[1760631305008,0.13937006,108780.0,108770.0,0.67926463]
[1760631305220,0.16893242,108780.0,108760.0,0.18389054]
[1760631305433,0.18387423,108770.0,108760.0,0.18389113]
[1760631305645,0.31387636,108770.0,108760.0,0.18389113]
[1760631305881,0.31387423,108770.0,108750.0,0.67929424]
[1760631306097,0.31387423,108770.0,108760.0,0.18389113]
[1760631306299,0.31387423,108770.0,108760.0,0.17491157]
[1760631306505,0.31387423,108770.0,108750.0,0.18389758]
[1760631306727,0.13,108770.0,108760.0,0.18389113]
[1760631306926,0.31387423,108770.0,108760.0,0.18389113]
[1760631307136,0.31387423,108770.0,108750.0,0.18389758]
[1760631307359,0.31387423,108770.0,108760.0,0.01702379]
[1760631307774,0.15365462,108770.0,108760.0,0.20091492]
[1760631307926,0.17365462,108770.0,108750.0,0.18389758]
[1760631308127,0.02,108770.0,108760.0,0.69767064]
[1760631308331,0.02,108770.0,108760.0,0.67928153]
[1760631308750,0.02836785,108770.0,108760.0,0.67928153]
[1760631309090,0.21224208,108770.0,108760.0,0.18389113]
[1760631309346,0.02836785,108770.0,108760.0,0.18389113]
[1760631309949,0.02836785,108770.0,108760.0,0.67928153]
[1760631310149,0.02836785,108770.0,108760.0,0.82698153]
[1760631310525,0.02836785,108770.0,108760.0,0.67928153]
[1760631310939,0.02836785,108770.0,108760.0,1.44824433]
[1760631311137,0.02836785,108770.0,108760.0,1.64054433]
[1760631311987,0.02836785,108770.0,108760.0,1.14515393]
[1760631312724,0.02836785,108770.0,108760.0,0.82698153]
[1760631314219,0.02837253,108770.0,108760.0,0.82698153]
[1760631314418,0.02837253,108770.0,108760.0,1.44824433]
[1760631314842,0.2,108800.0,108790.0,0.18384042]
[1760631315049,0.20220336,108810.0,108800.0,0.18382352]
[1760631315255,0.1118203,108810.0,108800.0,0.17783887]
[1760631315472,0.1118203,108810.0,108800.0,0.69161162]
[1760631315675,0.1118203,108810.0,108800.0,1.16861967]
[1760631315894,0.1118203,108810.0,108800.0,1.63449207]
[1760631316104,0.3,108840.0,108830.0,0.18377285]
[1760631316310,0.14,108840.0,108830.0,0.18377285]
[1760631316527,0.32375597,108840.0,108820.0,0.18378974]
[1760631316730,0.32375597,108840.0,108830.0,0.67916325]
[1760631316943,0.32375597,108840.0,108820.0,0.18378974]
[1760631317160,0.32375597,108840.0,108830.0,0.18377285]
[1760631317365,0.14,108840.0,108830.0,0.17479878]
[1760631317569,0.14,108840.0,108830.0,0.67018918]
[1760631317997,0.14,108840.0,108830.0,0.18377285]
[1760631318197,0.14,108840.0,108830.0,0.67916325]
[1760631318820,0.14,108840.0,108830.0,0.80503565]
[1760631319230,0.14,108840.0,108830.0,1.24047565]
[1760631319464,0.14,108840.0,108830.0,2.13586605]
[1760631320326,0.14,108840.0,108830.0,1.64047565]
[1760631320970,0.14,108840.0,108830.0,1.54503565]
[1760631321418,0.14,108840.0,108830.0,0.67916325]
[1760631321634,0.32375597,108840.0,108810.0,0.19296767]
[1760631321847,0.18379361,108820.0,108800.0,0.20702176]
[1760631322056,0.18377285,108830.0,108810.0,0.68090042]
[1760631322290,0.11,108830.0,108820.0,0.18378974]
[1760631322505,0.11,108830.0,108820.0,0.67918014]
[1760631322715,0.11,108830.0,108820.0,0.76887026]
[1760631322936,0.11,108830.0,108820.0,1.14505254]
[1760631323153,0.1,108840.0,108830.0,0.55995513]
[1760631323375,0.1,108840.0,108830.0,1.73582605]
[1760631323826,0.01839673,108870.0,108860.0,0.21990449]
[1760631324035,0.14839673,108870.0,108860.0,0.80498501]
[1760631324245,0.0002,108880.0,108870.0,0.18370533]
[1760631324462,0.1302,108880.0,108870.0,0.6641465]
[1760631325571,0.1302,108880.0,108870.0,0.75383662]
[1760631326017,0.1302,108880.0,108870.0,1.2254189]
[1760631326239,0.1302,108880.0,108870.0,1.6254189]
[1760631326886,0.13850948,108880.0,108870.0,1.6254189]
[1760631327299,0.13850948,108880.0,108870.0,1.61645106]
[1760631327519,0.13850948,108880.0,108870.0,2.09988442]
[1760631327724,0.13275355,108880.0,108870.0,2.09988442]
[1760631328141,0.13275355,108880.0,108870.0,7.09988442]
[1760631328356,0.0002,108900.0,108890.0,1.05524427]
[1760631328561,0.1302,108900.0,108890.0,1.24029439]
[1760631328798,0.01859673,108920.0,108910.0,0.55982014]
[1760631329035,0.14874727,108920.0,108910.0,1.24026066]
[1760631329243,0.13035054,108920.0,108910.0,1.64026066]
[1760631329678,0.0002,108960.0,108950.0,0.18357044]
[1760631329898,0.00035065,108960.0,108950.0,1.21927717]
[1760631330120,0.00035065,108960.0,108950.0,6.23951509]
[1760631330331,0.0002,108980.0,108970.0,0.21971903]
[1760631330550,0.13070206,108980.0,108970.0,1.24015955]
[1760631331172,0.13070206,108980.0,108970.0,1.64015955]
[1760631331395,0.13070206,108980.0,108970.0,1.14476915]
[1760631331616,0.13070206,108980.0,108970.0,1.1165828]
[1760631331833,0.13070206,108980.0,108970.0,1.07892715]
[1760631332260,0.13070206,108980.0,108970.0,1.20479955]
[1760631332493,0.13070206,108980.0,108970.0,0.70940915]
[1760631332725,0.13070206,108980.0,108970.0,1.20479955]
[1760631333579,0.13070206,108980.0,108970.0,0.80479955]
[1760631334416,0.13070206,108980.0,108970.0,0.78986437]
[1760631334616,0.13070206,108980.0,108970.0,1.18986437]
[1760631334836,0.13070206,108980.0,108970.0,0.18353675]
[1760631335055,0.10312854,108980.0,108970.0,0.90007955]
[1760631335295,0.10312854,108980.0,108970.0,0.74468915]
[1760631335502,0.10312854,108980.0,108970.0,1.50769255]
[1760631336549,0.0002,109010.0,109000.0,0.18348623]
[1760631336759,0.12035056,109010.0,109000.0,1.41236203]
[1760631337386,0.12035056,109010.0,109000.0,1.40340406]
[1760631338699,0.12035056,109010.0,108980.0,0.1834918]
[1760631338918,0.12035056,109010.0,108980.0,0.27318192]
[1760631338919,0.31299569,109010.0,108980.0,0.27318192]
[1760631339158,0.18350617,108990.0,108970.0,0.18353624]
[1760631339365,0.12,108990.0,108980.0,0.18351991]
[1760631339584,0.12,108990.0,108980.0,0.17157138]
[1760631339798,0.12,108990.0,108980.0,0.1886742]
[1760631340005,0.12,108990.0,108980.0,0.17157138]
[1760631340238,0.13488679,108990.0,108980.0,0.17157138]
[1760631340471,0.13488679,108990.0,108970.0,0.18353624]
[1760631340700,0.12822642,108990.0,108980.0,0.18351991]
[1760631341124,0.13488679,108990.0,108980.0,0.18351991]
[1760631341968,0.13488679,108990.0,108980.0,0.94652331]
[1760631343010,0.12666037,108990.0,108980.0,0.18351991]
[1760631343219,0.13490715,108990.0,108980.0,0.18351991]
[1760631343429,0.13490715,108990.0,108980.0,1.07239571]
[1760631344326,0.13490715,108990.0,108980.0,0.93159085]
[1760631344773,0.13490715,108990.0,108970.0,0.18353624]
[1760631344987,0.12824678,108990.0,108980.0,0.18351991]
[1760631345197,0.12824678,108990.0,108980.0,0.1566378]
[1760631345410,0.12824678,108990.0,108980.0,0.1707624]
[1760631345642,0.12824678,108990.0,108980.0,0.18351991]
[1760631346268,0.12824678,108990.0,108980.0,0.98270559]
[1760631346482,0.12824678,108990.0,108980.0,1.07239571]
[1760631347309,0.12824678,108990.0,108980.0,1.06343637]
[1760631347515,0.12824678,108990.0,108980.0,0.30043297]
[1760631347954,0.12824678,108990.0,108970.0,0.7630034]
[1760631348190,0.00917599,108980.0,108950.0,0.15668054]
[1760631348417,0.00917599,108980.0,108950.0,0.1835653]
[1760631348418,0.18354384,108970.0,108950.0,0.1835653]
[1760631348637,0.18355359,108960.0,108940.0,0.18358501]
[1760631348858,0.31180139,108960.0,108930.0,0.18351021]
[1760631349074,0.31180139,108960.0,108920.0,0.20196717]
[1760631349075,0.18357121,108950.0,108920.0,0.20196717]
[1760631349270,0.337492,108950.0,108920.0,0.20196717]
[1760631349484,0.18358792,108940.0,108920.0,0.18412278]
[1760631349691,0.3118347,108940.0,108920.0,0.00050206]
[1760631349898,0.18360414,108930.0,108920.0,0.00050206]
[1760631350115,0.67185092,108930.0,108920.0,0.00050206]
[1760631350768,0.14824678,108930.0,108920.0,0.18412306]
[1760631350997,0.14824678,108930.0,108920.0,0.00050206]
[1760631351213,0.33185092,108930.0,108920.0,0.00050206]
[1760631351684,0.18363188,108920.0,108910.0,0.18363786]
[1760631351947,0.34105971,108920.0,108900.0,0.18365472]
[1760631352178,0.34105971,108920.0,108900.0,0.18380537]
[1760631352409,0.34104883,108920.0,108910.0,0.18363786]
[1760631352634,0.18363786,108910.0,108900.0,0.00015065]
[1760631352869,0.33188464,108910.0,108900.0,0.00015065]
[1760631353112,0.33188464,108910.0,108880.0,0.19286772]
[1760631353113,0.33195035,108910.0,108890.0,0.18367136]
[1760631353328,0.33195063,108910.0,108890.0,0.1838219]
[1760631353545,0.20402422,108900.0,108890.0,0.00015054]
[1760631353761,0.32196721,108900.0,108890.0,0.00015054]
[1760631353972,0.66196721,108900.0,108890.0,0.00015054]
[1760631354401,0.52368161,108890.0,108860.0,0.18532117]
[1760631354642,0.20003395,108880.0,108860.0,0.18547231]
[1760631354850,0.31200095,108880.0,108860.0,0.18547231]
[1760631355075,0.31200095,108880.0,108860.0,0.18547238]
[1760631355491,0.18370533,108870.0,108860.0,0.00175017]
[1760631355717,0.04831249,108870.0,108860.0,0.18547238]
[1760631355945,0.59238732,108870.0,108860.0,0.00175017]
[1760631356176,0.38831249,108870.0,108860.0,0.00175017]
[1760631356399,0.57201782,108870.0,108860.0,0.00175017]
[1760631357259,0.18374124,108850.0,108840.0,0.1837556]
[1760631357477,0.07846286,108850.0,108840.0,0.94675937]
[1760631357710,0.07846286,108850.0,108840.0,0.93479676]
[1760631357935,0.00846286,108850.0,108840.0,0.93479676]
[1760631358515,0.01846286,108850.0,108840.0,0.17179336]
[1760631358728,0.01846286,108850.0,108830.0,0.7630034]
[1760631358936,0.01846286,108850.0,108840.0,0.18375597]
[1760631359970,0.50635709,108870.0,108850.0,0.18373909]
[1760631360178,0.50635709,108870.0,108840.0,0.17827613]
[1760631360179,0.20168575,108860.0,108840.0,0.17827613]
[1760631360396,0.14050256,108860.0,108850.0,0.18373909]
[1760631360608,0.18373938,108850.0,108820.0,0.18372901]
[1760631360813,0.29292633,108850.0,108830.0,0.18377089]
[1760631361022,0.1,108850.0,108840.0,0.18375597]
[1760631361661,0.29292604,108850.0,108820.0,0.18372901]
[1760631361872,0.1,108850.0,108830.0,0.96242894]
[1760631362089,0.1,108850.0,108840.0,0.18375597]
[1760631362307,0.0391685,108850.0,108840.0,0.94675937]
[1760631362936,0.0391685,108850.0,108840.0,0.94797216]
[1760631363151,0.0381685,108850.0,108840.0,0.94797216]
[1760631364061,0.0381685,108850.0,108840.0,1.41384456]
[1760631364278,0.0381685,108850.0,108840.0,0.65084116]
[1760631364514,0.0381685,108850.0,108840.0,1.41384456]
[1760631364724,0.0381685,108850.0,108840.0,1.32415444]
[1760631365554,0.0381685,108850.0,108840.0,1.41384456]
[1760631366000,0.18159889,108880.0,108850.0,0.55992137]
[1760631366212,0.12159889,108880.0,108870.0,0.94670873]
[1760631366429,0.30528735,108880.0,108860.0,0.18371007]
[1760631366639,0.30528735,108880.0,108870.0,0.18370533]
[1760631366854,0.18371286,108870.0,108850.0,0.33203843]
[1760631367061,0.30371286,108870.0,108850.0,0.33203843]
[1760631367286,0.30371286,108870.0,108860.0,0.18372221]
[1760631367531,0.30371286,108870.0,108850.0,0.33204379]
[1760631367737,0.30371286,108870.0,108860.0,0.18372221]
[1760631367957,0.12,108870.0,108860.0,0.19792702]
[1760631368168,0.32365861,108870.0,108860.0,0.18372221]
[1760631368373,0.30370533,108870.0,108860.0,0.18372221]
[1760631369414,0.12,108870.0,108860.0,0.18372221]
[1760631369840,0.12,108870.0,108860.0,0.94672561]
[1760631370255,0.12,108870.0,108860.0,0.18372221]
[1760631370691,0.30370533,108870.0,108850.0,0.14830634]
[1760631371045,0.18372221,108860.0,108850.0,0.14830634]
[1760631371136,0.30370533,108870.0,108850.0,0.33204521]
[1760631371360,0.20409171,108860.0,108850.0,0.00060634]
[1760631371566,0.31372221,108860.0,108850.0,0.00060634]
[1760631371993,0.32202295,108860.0,108850.0,0.00060634]
[1760631372207,0.18375386,108850.0,108830.0,0.18377206]
[1760631372425,0.18375597,108840.0,108830.0,0.00050256]
[1760631372641,0.16867024,108840.0,108830.0,0.18427541]
[1760631372846,0.16867441,108840.0,108830.0,0.19068819]
[1760631373054,0.14830491,108840.0,108830.0,0.19068819]
[1760631373261,0.14830491,108840.0,108830.0,0.95369159]
[1760631373487,0.14830491,108840.0,108830.0,0.93531431]
[1760631373693,0.14830491,108840.0,108830.0,0.17231091]
[1760631373905,0.14830491,108840.0,108830.0,0.18377285]
[1760631374722,0.33206088,108840.0,108820.0,0.94673241]
[1760631374928,0.33206088,108840.0,108830.0,0.18377285]
[1760631375130,0.14830491,108840.0,108830.0,0.18377285]
[1760631375356,0.14830491,108840.0,108830.0,0.94079418]
[1760631375572,0.14830491,108840.0,108830.0,0.17779078]
[1760631375778,0.14830491,108840.0,108830.0,0.19616806]
[1760631376196,0.14830491,108840.0,108830.0,0.17779078]
[1760631377047,0.33206088,108840.0,108820.0,0.00015037]
[1760631377290,0.18377285,108830.0,108820.0,0.00015037]
[1760631377498,0.18377285,108830.0,108810.0,0.17497907]
[1760631377499,0.23244726,108830.0,108810.0,0.17497907]
[1760631377710,0.21222842,108830.0,108820.0,0.18333863]
[1760631377917,0.21222842,108830.0,108820.0,0.18378974]
[1760631378132,0.21222842,108830.0,108820.0,0.0018196]
[1760631378789,0.18378974,108820.0,108810.0,0.17365584]
[1760631379012,0.32209465,108820.0,108810.0,0.17365584]
[1760631379234,0.33128413,108820.0,108790.0,0.18376185]
[1760631379444,0.33128413,108820.0,108810.0,0.00060668]
[1760631379660,0.33128413,108820.0,108810.0,0.18441331]
[1760631379886,0.33128413,108820.0,108810.0,0.00060668]
[1760631380103,0.34802327,108820.0,108810.0,0.00060668]
[1760631380529,0.33882962,108820.0,108810.0,0.00060668]
[1760631380738,0.18380663,108810.0,108800.0,0.18382233]
[1760631380954,0.32211154,108810.0,108800.0,0.18382233]
[1760631381210,0.18382352,108800.0,108770.0,0.21222404]
[1760631381423,0.18382352,108800.0,108770.0,0.01]
[1760631381424,0.18385732,108780.0,108770.0,0.01]
[1760631381646,0.20216223,108780.0,108770.0,0.01]
[1760631382097,0.20216223,108780.0,108770.0,1e-08]
[1760631382099,1.32188654,108780.0,108770.0,1e-08]
[1760631382305,0.52389293,108760.0,108730.0,0.20233821]
[1760631382530,0.0203695,108750.0,108730.0,0.20233821]
[1760631382744,0.21258245,108750.0,108730.0,0.18394148]
[1760631382992,0.18392495,108740.0,108730.0,0.18394187]
[1760631383208,0.12830491,108740.0,108730.0,0.18394187]
[1760631384718,0.31222986,108740.0,108720.0,0.94696004]
[1760631384931,0.31222986,108740.0,108720.0,0.17198087]
[1760631385181,0.12830491,108740.0,108730.0,0.18394187]
[1760631385395,0.12830491,108740.0,108730.0,0.19939576]
[1760631385608,0.12830491,108740.0,108730.0,0.16298472]
[1760631385821,0.12830491,108740.0,108730.0,0.9443823]
[1760631386037,0.12830491,108740.0,108730.0,0.92598812]
[1760631386249,0.12830491,108740.0,108730.0,0.16298472]
[1760631386699,0.12830491,108740.0,108730.0,0.94694527]
[1760631387142,0.14867441,108740.0,108730.0,0.00485719]
[1760631387576,0.14867441,108740.0,108730.0,0.18394187]
[1760631388005,0.14225713,108740.0,108730.0,0.94694527]
[1760631388224,0.12830491,108740.0,108730.0,0.94694527]
[1760631388867,0.12830491,108740.0,108730.0,0.7630034]
[1760631389085,0.31222986,108740.0,108720.0,0.1678568]
[1760631389300,0.31222986,108740.0,108720.0,0.94695658]
[1760631389526,0.31222986,108740.0,108730.0,0.18394187]
[1760631389731,0.12830491,108740.0,108730.0,0.18394187]
[1760631389939,0.32439335,108740.0,108720.0,0.94695658]
[1760631390143,0.32439335,108740.0,108730.0,0.18394187]
[1760631390144,0.31222986,108740.0,108730.0,0.18394187]
[1760631390381,0.31222986,108740.0,108730.0,0.17795424]
[1760631390382,0.12830491,108740.0,108730.0,0.17795424]
[1760631390597,0.12830491,108740.0,108730.0,0.94095764]
[1760631390829,0.12830491,108740.0,108730.0,0.92898305]
[1760631391713,0.31222986,108740.0,108730.0,0.18394187]
[1760631392135,0.31222986,108740.0,108720.0,0.7630034]
[1760631392346,0.31222986,108740.0,108710.0,0.9469787]
[1760631392552,0.12830491,108740.0,108730.0,0.18394187]
[1760631392763,0.31981048,108740.0,108730.0,0.94694527]
[1760631392976,0.31222986,108740.0,108730.0,0.94694527]
[1760631393184,0.12830491,108740.0,108730.0,0.94694527]
[1760631393404,0.12830491,108740.0,108730.0,0.18394187]
[1760631393603,0.12830491,108740.0,108730.0,0.94694527]
[1760631394020,0.31222986,108740.0,108730.0,0.7630034]
[1760631394235,0.31222986,108740.0,108720.0,0.94695864]
[1760631394448,0.12830491,108740.0,108730.0,0.18394187]
[1760631394680,0.31222986,108740.0,108730.0,0.94694527]
[1760631394882,0.18394187,108730.0,108720.0,0.94695859]
[1760631395095,0.19310414,108750.0,108730.0,0.18394187]
[1760631395301,0.11828571,108750.0,108730.0,0.94694527]
[1760631395513,0.19728244,108740.0,108730.0,0.6794661]
[1760631395728,0.32221066,108740.0,108730.0,0.6794661]
[1760631395945,0.18394187,108730.0,108720.0,0.49613166]
[1760631396151,0.32222758,108730.0,108720.0,0.6800893]
[1760631396358,0.13828571,108730.0,108720.0,0.6800893]
[1760631396560,0.32222758,108730.0,108720.0,0.68009045]
[1760631396834,0.32222758,108730.0,108720.0,0.49613166]
[1760631397218,0.32222758,108730.0,108720.0,0.68009045]
[1760631397419,0.13828571,108730.0,108720.0,0.65913318]
[1760631397621,0.32222758,108730.0,108720.0,0.65913318]
[1760631397822,0.13828571,108730.0,108720.0,0.65913318]
[1760631398031,0.13828571,108730.0,108720.0,0.18395879]
[1760631398251,0.32222758,108730.0,108720.0,0.18395879]
[1760631398442,0.18395879,108720.0,108700.0,0.63048129]
[1760631398657,0.18395879,108720.0,108710.0,0.18397157]
[1760631398658,0.3022445,108720.0,108710.0,0.18397157]
[1760631399091,0.11828571,108720.0,108710.0,0.6794958]
[1760631399538,0.00828571,108720.0,108710.0,0.6794958]
[1760631399773,0.00843615,108720.0,108710.0,0.6794958]
[1760631400203,0.01843615,108720.0,108710.0,0.6794958]
[1760631400422,0.01843615,108720.0,108710.0,0.66452593]
[1760631400655,0.00843615,108720.0,108710.0,0.1690017]
[1760631400874,0.00843615,108720.0,108710.0,0.67706568]
[1760631401091,0.01843615,108720.0,108710.0,0.66452593]
[1760631401743,0.01843615,108720.0,108710.0,0.1690017]
[1760631401998,0.01843615,108720.0,108710.0,0.66452593]
[1760631402185,0.20241557,108720.0,108710.0,0.66452593]
[1760631402673,0.20241557,108720.0,108710.0,0.18397571]
[1760631402916,0.18399264,108700.0,108690.0,0.18448956]
[1760631403134,0.18399264,108700.0,108690.0,0.68001379]
[1760631403135,0.00830634,108700.0,108690.0,0.68001379]
[1760631403315,0.00830634,108700.0,108690.0,0.66803428]
[1760631404002,0.00830634,108700.0,108690.0,0.17251005]
[1760631404214,0.01830634,108700.0,108690.0,0.17251005]
[1760631404427,0.01830634,108700.0,108690.0,0.20081075]
[1760631404618,0.01830634,108700.0,108690.0,0.71667912]
[1760631405300,0.01830634,108700.0,108690.0,0.7106897]
[1760631405519,0.00830634,108700.0,108690.0,0.7106897]
[1760631405989,0.00015044,108720.0,108690.0,1.18576257]
[1760631406235,0.12015044,108720.0,108710.0,1.51502417]
[1760631406454,0.12015044,108720.0,108710.0,1.64089657]
[1760631406671,0.12015044,108720.0,108710.0,1.14537234]
[1760631406883,0.12015044,108720.0,108710.0,1.54537234]
[1760631407142,0.12015044,108720.0,108710.0,2.04089657]
[1760631407573,0.12015044,108720.0,108710.0,2.03191569]
[1760631407784,0.00015044,108720.0,108710.0,2.03191569]
[1760631408428,0.00015044,108720.0,108710.0,1.53639146]
[1760631408847,0.00015044,108720.0,108710.0,1.41051906]
[1760631409269,0.00015044,108720.0,108710.0,1.53639146]
[1760631409489,0.00015044,108720.0,108710.0,2.35918019]
[1760631409704,0.00160173,108740.0,108730.0,0.6794661]
[1760631409915,0.00160173,108740.0,108730.0,0.90107932]
[1760631410122,0.21839673,108770.0,108760.0,0.18389113]
[1760631410329,0.21839673,108770.0,108760.0,0.63452138]
[1760631410330,0.32839673,108770.0,108760.0,0.63452138]
[1760631410538,0.31182131,108770.0,108760.0,0.63452138]
[1760631411003,0.31182131,108770.0,108760.0,0.64563211]
[1760631411663,0.49569554,108770.0,108760.0,0.18389113]
[1760631412294,0.49569554,108770.0,108750.0,0.67943227]
[1760631412539,0.49387423,108770.0,108760.0,0.18389113]
[1760631412743,0.49387423,108770.0,108760.0,0.19346002]
[1760631412961,0.49569554,108770.0,108760.0,0.18389113]
[1760631413179,0.49569554,108770.0,108750.0,0.18390804]
[1760631413409,0.49387423,108770.0,108750.0,0.67943227]
[1760631413622,0.18390804,108750.0,108740.0,0.89552423]
[1760631413855,0.11,108750.0,108740.0,0.18392495]
[1760631414079,0.11,108750.0,108740.0,0.67944918]
[1760631414511,0.11,108750.0,108740.0,0.18392495]
[1760631414730,0.11,108750.0,108740.0,0.71173262]
[1760631415166,0.11,108750.0,108740.0,0.18392495]
[1760631415378,0.11,108750.0,108740.0,0.66747556]
[1760631417289,0.11,108750.0,108740.0,0.69969199]
[1760631417498,0.11,108750.0,108730.0,0.49602505]
[1760631417729,0.18392495,108740.0,108730.0,0.00050082]
[1760631417953,0.18392495,108740.0,108720.0,0.4971261]
[1760631417954,0.18394187,108730.0,108720.0,0.4971261]
[1760631418192,0.20280983,108730.0,108720.0,0.00160187]
[1760631418409,0.30394187,108730.0,108720.0,0.00160187]
[1760631418839,0.18396769,108720.0,108700.0,0.6887015]
[1760631419064,0.18397571,108710.0,108690.0,0.67953063]
[1760631419282,0.18399264,108700.0,108660.0,0.19360168]
[1760631419492,0.0203695,108690.0,108680.0,0.18402246]
[1760631419718,0.23437906,108690.0,108670.0,0.18437943]
[1760631419931,0.20439599,108680.0,108670.0,0.0004]
[1760631420142,0.31402649,108680.0,108670.0,0.0004]
[1760631420352,0.18404343,108670.0,108640.0,0.0004]
[1760631420569,0.0203695,108660.0,108640.0,0.0004]
[1760631420785,0.1503695,108660.0,108640.0,0.68284787]
[1760631421012,0.21247347,108680.0,108670.0,0.18404343]
[1760631421013,0.01924566,108680.0,108670.0,0.18404343]
[1760631421225,0.21158928,108700.0,108680.0,0.18402649]
[1760631421438,0.66239089,108700.0,108670.0,0.67956766]
[1760631421651,1.20305964,108700.0,108670.0,0.18404343]